lending/lending_fUSD_20260328
["ID","MTS","AMOUNT","RATE_DAILY","PERIOD"]
[418983923,1774709454203,-663.0,0.00032877,15]
[418983924,1774709454220,-347.79,0.00032877,2]
[418983925,1774709454230,-876.59,0.00032877,2]
[418983926,1774709454240,-481.367725,0.00032877,7]
[418983927,1774709454250,-481.367725,0.00032877,7]
[418983928,1774709454259,-481.367725,0.00032877,7]
[418983929,1774709454269,-481.367725,0.00032877,7]
[418983930,1774709454279,-481.367725,0.00032877,7]
[418983931,1774709454288,-481.367725,0.00032877,7]
[418983932,1774709454298,-481.367725,0.00032877,7]
[418983933,1774709454308,-481.367725,0.00032877,7]
[418983934,1774709454317,-151.0,0.00032877,7]
[418983935,1774709454326,-184.919576,0.00032877,7]
[418983936,1774709454336,-500.0,0.00032877,2]
[418983937,1774709454345,-500.0,0.00032877,2]
[418983938,1774709454355,-500.0,0.00032877,2]
[418983939,1774709454364,-500.0,0.00032877,2]
[418983940,1774709454374,-500.0,0.00032877,2]
[418983941,1774709454384,-500.0,0.00032877,2]
[418983942,1774709454394,-390.31867838,0.00032877,2]
[418983943,1774709454404,-150.0,0.00032877,5]
[418983944,1774709454414,-151.0,0.00032897,14]
[418983945,1774709454424,-486563.17,0.000329,7]
[418983946,1774709454433,-152.0,0.00032989,11]
[418983947,1774709454442,-151.0,0.00032997,14]
[418983948,1774709454453,-77527.0,0.00033,20]
[418983949,1774709454463,-51765.31709129,0.00033,2]
[418983950,1774709454472,-26618.80774554,0.00033,2]
[418983951,1774709454482,-565.832793,0.00033,14]
[418983952,1774709454491,-557.04,0.00033,30]
[418983953,1774709454501,-150.0,0.00033043,2]
[418983954,1774709454510,-250.0,0.0003305,2]
[418983955,1774709454520,-11951.3562,0.000333,2]
[418983956,1774709454529,-800.0,0.00033387,2]
[418983957,1774709454539,-800.0,0.00033387,2]
[418983958,1774709454548,-693.0,0.00033387,2]
[418983959,1774709454558,-250.0,0.00033425,5]
[418983960,1774709454568,-151.0,0.00033497,14]
[418983961,1774709454578,-486563.17,0.000335,7]
[418983962,1774709454587,-1222.70187551,0.000335,2]
[418983963,1774709454597,-176.19966253,0.000335,5]
[418983964,1774709454606,-1043.55853142,0.00033562,118]
[418983965,1774709454621,-2368.01,0.000336,30]
[418983966,1774709454632,-3009.30818362,0.000337,20]
[418983967,1774709454642,-3605.62,0.000337,30]
[418983968,1774709454653,-150.0,0.00033798,30]
[418983969,1774709454663,-798.1,0.00033834,2]
[418983970,1774709454673,-152.0,0.00033835,12]
[418983971,1774709454683,-350.0,0.00033973,5]
[418983972,1774709454693,-14167.14032678,0.00034,4]
[418983973,1774709454703,-160.0,0.00034,30]
[418983974,1774709454715,-2000.0,0.00034,2]
[418983975,1774709454725,-800.0,0.00034037,2]
[418983976,1774709454735,-800.0,0.00034037,2]
[418983977,1774709454745,-715.0,0.00034037,2]
[418983978,1774709454755,-81712.85714165,0.0003406,2]
[418983979,1774709454765,-16717.74,0.000341,2]
[418983980,1774709454774,-500.0,0.0003416,2]
[418983981,1774709454784,-500.0,0.0003416,2]
[418983982,1774709454794,-374.0,0.0003416,2]
[418983983,1774709454804,-1720.16,0.00034335,2]
[418983984,1774709454814,-2957.83,0.000344,30]
[418983985,1774709454824,-177.0,0.00034442,30]
[418983986,1774709454834,-229.0,0.00034484,30]
[418983987,1774709454843,-155.0,0.00034484,30]
[418983988,1774709454853,-272.0,0.00034484,30]
[418983989,1774709454863,-397.0,0.00034484,30]
[418983990,1774709454872,-1747.27974505,0.0003449,2]
[418983991,1774709454882,-250.0,0.00034492,2]
[418983992,1774709454892,-486563.17,0.000345,7]
[418983993,1774709454902,-388.0,0.000345,2]
[418983994,1774709454912,-300.79818018,0.00034521,5]
[418983995,1774709454922,-15712.6727,0.000346,2]
[418983996,1774709454932,-152.0,0.00034681,13]
[418983997,1774709454941,-150.0,0.00034696,2]
[418983998,1774709454951,-1500.0,0.00034795,2]
[418983999,1774709454961,-1754.94465764,0.00034865,2]
[418984000,1774709454970,-1272.63,0.00034881,2]
[418984001,1774709454980,-1882.93233324,0.000349,2]
[418984002,1774709454990,-4645.95043496,0.000349,2]
[418984003,1774709455000,-210.50443297,0.000349,2]
[418984004,1774709455009,-207.26268318,0.000349,2]
[418984005,1774709455019,-621.0,0.00034977,2]
[418984006,1774709455029,-1045.0,0.00034977,2]
[418984007,1774709455039,-1262.0,0.00034977,2]
[418984008,1774709455048,-500.0,0.00034986,2]
[418984009,1774709455058,-500.0,0.00034986,2]
[418984010,1774709455068,-381.0,0.00034986,2]
[418984011,1774709455077,-151.0,0.00034997,14]
[418984012,1774709455088,-300.0,0.00034999,10]
[418984013,1774709455097,-300.0,0.00034999,10]
[418984014,1774709455107,-300.0,0.00034999,10]
[418984015,1774709455117,-300.0,0.00034999,10]
[418984016,1774709455127,-300.0,0.00034999,10]
[418984017,1774709455137,-300.0,0.00034999,10]
[418984018,1774709455147,-300.0,0.00034999,10]
[418984019,1774709455156,-300.0,0.00034999,10]
[418984020,1774709455167,-300.0,0.00034999,10]
[418984021,1774709455177,-300.0,0.00034999,10]
[418984022,1774709455186,-300.0,0.00034999,10]
[418984023,1774709455196,-300.0,0.00034999,10]
[418984024,1774709455205,-300.0,0.00034999,10]
[418984025,1774709455215,-300.0,0.00034999,10]
[418984026,1774709455225,-300.0,0.00034999,10]
[418984027,1774709455234,-300.0,0.00034999,10]
[418984028,1774709455244,-300.0,0.00034999,10]
[418984029,1774709455253,-300.0,0.00034999,10]
[418984030,1774709455263,-300.0,0.00034999,10]
[418984031,1774709455272,-300.0,0.00034999,10]
[418984032,1774709455282,-300.0,0.00034999,10]
[418984033,1774709455292,-300.0,0.00034999,10]
[418984034,1774709455301,-300.0,0.00034999,10]
[418984035,1774709455311,-300.0,0.00034999,10]
[418984036,1774709455320,-300.0,0.00034999,10]
[418984037,1774709455330,-300.0,0.00034999,10]
[418984038,1774709455340,-300.0,0.00034999,10]
[418984039,1774709455350,-300.0,0.00034999,10]
[418984040,1774709455360,-300.0,0.00034999,10]
[418984041,1774709455370,-300.0,0.00034999,10]
[418984042,1774709455380,-300.0,0.00034999,10]
[418984043,1774709455390,-300.0,0.00034999,10]
[418984044,1774709455399,-300.0,0.00034999,10]
[418984045,1774709455409,-300.0,0.00034999,10]
[418984046,1774709455419,-300.0,0.00034999,10]
[418984047,1774709455428,-300.0,0.00034999,10]
[418984048,1774709455438,-300.0,0.00034999,10]
[418984049,1774709455448,-300.0,0.00034999,10]
[418984050,1774709455457,-300.0,0.00034999,10]
[418984051,1774709455466,-300.0,0.00034999,10]
[418984052,1774709455476,-300.0,0.00034999,10]
[418984053,1774709455485,-300.0,0.00034999,10]
[418984054,1774709455494,-300.0,0.00034999,10]
[418984055,1774709455504,-300.0,0.00034999,10]
[418984056,1774709455513,-300.0,0.00034999,10]
[418984057,1774709455523,-300.0,0.00034999,10]
[418984058,1774709455534,-300.0,0.00034999,10]
[418984059,1774709455543,-300.0,0.00034999,10]
[418984060,1774709455553,-300.0,0.00034999,10]
[418984061,1774709455562,-300.0,0.00034999,10]
[418984062,1774709455572,-300.0,0.00034999,10]
[418984063,1774709455582,-300.0,0.00034999,10]
[418984064,1774709455592,-300.0,0.00034999,10]
[418984065,1774709455601,-300.0,0.00034999,10]
[418984066,1774709455611,-300.0,0.00034999,10]
[418984067,1774709455622,-300.0,0.00034999,10]
[418984068,1774709455632,-326.80051736,0.00034999,10]
[418984069,1774709455642,-300.0,0.00034999,10]
[418984070,1774709455652,-300.0,0.00034999,10]
[418984071,1774709455661,-300.0,0.00034999,10]
[418984072,1774709455671,-300.0,0.00034999,10]
[418984073,1774709455680,-300.0,0.00034999,10]
[418984074,1774709455690,-300.0,0.00034999,10]
[418984075,1774709455699,-300.0,0.00034999,10]
[418984076,1774709455795,-300.0,0.00034999,10]
[418984077,1774709455807,-306.82557684,0.00034999,10]
[418984078,1774709455816,-300.0,0.00034999,10]
[418984079,1774709455827,-300.0,0.00034999,10]
[418984080,1774709455836,-417.92213349,0.00034999,10]
[418984081,1774709455846,-201.29,0.00035,5]
[418984082,1774709455856,-340000.0,0.00035,4]
[418984083,1774709455866,-1935.18760194,0.00035,2]
[418984084,1774709455875,-100000.0,0.00035,30]
[418984085,1774709455885,-100000.0,0.00035,30]
[418984086,1774709455895,-150.0,0.00035,2]
[418984087,1774709455904,-163.794,0.00035,2]
[418984088,1774709455914,-99126.0,0.00035,30]
[418984089,1774709455923,-557.04,0.00035,30]
[418984090,1774709455933,-151.0,0.00035,7]
[418984091,1774709455942,-151.0,0.00035,7]
[418984092,1774709455951,-151.0,0.00035,7]
[418984093,1774709455961,-176.103982,0.00035,7]
[418984094,1774709455970,-151.0,0.00035,7]
[418984095,1774709455980,-151.0,0.00035,7]
[418984096,1774709455990,-151.0,0.00035,7]
[418984097,1774709455999,-151.0,0.00035,7]
[418984098,1774709456008,-151.0,0.00035,7]
[418984099,1774709456018,-151.0,0.00035,7]
[418984100,1774709456028,-207.98764,0.00035,7]
[418984101,1774709456038,-207.98764,0.00035,7]
[418984102,1774709456047,-207.98764,0.00035,7]
[418984103,1774709456057,-207.98764,0.00035,7]
[418984104,1774709456067,-151.0,0.00035,7]
[418984105,1774709456076,-151.0,0.00035,7]
[418984106,1774709456086,-196.184062,0.00035,7]
[418984107,1774709456096,-196.184062,0.00035,7]
[418984108,1774709456106,-196.184062,0.00035,7]
[418984109,1774709456116,-196.184062,0.00035,7]
[418984110,1774709456125,-161.623262,0.00035,7]
[418984111,1774709456135,-182.803556,0.00035,7]
[418984112,1774709456145,-182.803556,0.00035,7]
[418984113,1774709456154,-182.803556,0.00035,7]
[418984114,1774709456164,-182.803556,0.00035,7]
[418984115,1774709456175,-481.367725,0.00035,7]
[418984116,1774709456184,-481.367725,0.00035,7]
[418984117,1774709456193,-481.367725,0.00035,7]
[418984118,1774709456203,-481.367725,0.00035,7]
[418984119,1774709456213,-151.0,0.00035,7]
[418984120,1774709456223,-151.0,0.00035,7]
[418984121,1774709456233,-151.0,0.00035,7]
[418984122,1774709456242,-159.799837,0.00035,120]
[418984123,1774709456253,-151.0,0.00035,7]
[418984124,1774709456263,-151.0,0.00035,7]
[418984125,1774709456272,-151.0,0.00035,7]
[418984126,1774709456282,-406.762198,0.00035,7]
[418984127,1774709456291,-406.762198,0.00035,7]
[418984128,1774709456301,-406.762198,0.00035,7]
[418984129,1774709456310,-406.762198,0.00035,7]
[418984130,1774709456319,-1837.713949,0.00035,7]
[418984131,1774709456329,-1837.713949,0.00035,7]
[418984132,1774709456339,-1837.713949,0.00035,7]
[418984133,1774709456348,-1837.713949,0.00035,7]
[418984134,1774709456358,-170.706749,0.00035,7]
[418984135,1774709456368,-170.706749,0.00035,7]
[418984136,1774709456378,-170.706749,0.00035,7]
[418984137,1774709456391,-170.706749,0.00035,7]
[418984138,1774709456400,-9245.710185,0.00035,7]
[418984139,1774709456411,-9245.710185,0.00035,7]
[418984140,1774709456421,-200.0,0.00035,3]
[418984141,1774709456431,-9245.710185,0.00035,7]
[418984142,1774709456441,-9245.710185,0.00035,7]
[418984143,1774709456451,-151.0,0.00035,7]
[418984144,1774709456460,-151.0,0.00035,7]
[418984145,1774709456470,-157.367364,0.00035,7]
[418984146,1774709456479,-188.291554,0.00035,7]
[418984147,1774709456489,-188.291554,0.00035,7]
[418984148,1774709456499,-188.291554,0.00035,7]
[418984149,1774709456510,-188.291554,0.00035,7]
[418984150,1774709456521,-254.618086,0.00035,7]
[418984151,1774709456530,-254.618086,0.00035,7]
[418984152,1774709456539,-254.618086,0.00035,7]
[418984153,1774709456549,-254.618086,0.00035,7]
[418984154,1774709456559,-913.945606,0.00035,7]
[418984155,1774709456568,-913.945606,0.00035,7]
[418984156,1774709456578,-913.945606,0.00035,7]
[418984157,1774709456588,-913.945606,0.00035,7]
[418984158,1774709456599,-249.669586,0.00035,7]
[418984159,1774709456609,-249.669586,0.00035,7]
[418984160,1774709456619,-249.669586,0.00035,7]
[418984161,1774709456630,-249.669586,0.00035,7]
[418984162,1774709456642,-977.716527,0.00035,7]
[418984163,1774709456652,-977.716527,0.00035,7]
[418984164,1774709456663,-2005.676861,0.00035,7]
[418984165,1774709456672,-977.716527,0.00035,7]
[418984166,1774709456682,-2005.676861,0.00035,7]
[418984167,1774709456692,-977.716527,0.00035,7]
[418984168,1774709456701,-151.0,0.00035,7]
[418984169,1774709456711,-2005.676861,0.00035,7]
[418984170,1774709456721,-2005.676861,0.00035,7]
[418984171,1774709456731,-606.320897,0.00035,7]
[418984172,1774709456741,-151.0,0.00035,7]
[418984173,1774709456751,-606.320897,0.00035,7]
[418984174,1774709456760,-151.0,0.00035,7]
[418984175,1774709456770,-606.320897,0.00035,7]
[418984176,1774709456779,-606.320897,0.00035,7]
[418984177,1774709456788,-151.0,0.00035,7]
[418984178,1774709456798,-151.0,0.00035,7]
[418984179,1774709456808,-151.0,0.00035,7]
[418984180,1774709456818,-393.472175,0.00035,7]
[418984181,1774709456828,-151.0,0.00035,7]
[418984182,1774709456838,-778.905462,0.00035,7]
[418984183,1774709456847,-1255.937583,0.00035,7]
[418984184,1774709456856,-393.472175,0.00035,7]
[418984185,1774709456866,-500.0,0.00035,2]
[418984186,1774709456875,-1000.0,0.00035,7]
[418984187,1774709456886,-180.13215179,0.00035034,13]
[418984188,1774709456896,-1093.98,0.00035413,2]
[418984189,1774709456906,-2187.96,0.00035413,2]
[418984190,1774709456915,-177.0,0.00035442,30]
[418984191,1774709456925,-229.0,0.00035484,30]
[418984192,1774709456934,-155.0,0.00035484,30]
[418984193,1774709456944,-272.0,0.00035484,30]
[418984194,1774709456953,-397.0,0.00035484,30]
[418984195,1774709456963,-152.0,0.00035527,14]
[418984196,1774709456972,-169384.68363494,0.0003561,2]
[418984197,1774709456982,-4471.77788002,0.0003561,2]
[418984198,1774709456991,-3967.464,0.00035616,120]
[418984199,1774709457000,-876.59,0.00035616,2]
[418984200,1774709457010,-628.58023,0.00035616,7]
[418984201,1774709457019,-628.58023,0.00035616,7]
[418984202,1774709457028,-628.58023,0.00035616,7]
[418984203,1774709457038,-628.58023,0.00035616,7]
[418984204,1774709457047,-628.58023,0.00035616,7]
[418984205,1774709457057,-628.58023,0.00035616,7]
[418984206,1774709457067,-628.58023,0.00035616,7]
[418984207,1774709457076,-628.58023,0.00035616,7]
[418984208,1774709457085,-628.58023,0.00035616,7]
[418984209,1774709457095,-628.58023,0.00035616,7]
[418984210,1774709457104,-628.58023,0.00035616,7]
[418984211,1774709457113,-628.58023,0.00035616,7]
[418984212,1774709457123,-1000.0,0.00035616,10]
[418984213,1774709457133,-1000.0,0.00035616,10]
[418984214,1774709457142,-1000.0,0.00035616,10]
[418984215,1774709457152,-1000.0,0.00035616,10]
[418984216,1774709457162,-1000.0,0.00035616,10]
[418984217,1774709457248,-1000.0,0.00035616,10]
[418984218,1774709457258,-1000.0,0.00035616,10]
[418984219,1774709457268,-1000.0,0.00035616,10]
[418984220,1774709457278,-1000.0,0.00035616,10]
[418984221,1774709457288,-1000.0,0.00035616,10]
[418984222,1774709457297,-1000.0,0.00035616,10]
[418984223,1774709457307,-1000.0,0.00035616,10]
[418984224,1774709457317,-1000.0,0.00035616,10]
[418984225,1774709457327,-1000.0,0.00035616,10]
[418984226,1774709457336,-150.0,0.00035742,30]
[418984227,1774709457347,-20657.7461,0.000359,2]
[418984228,1774709457356,-250.0,0.00035934,2]
[418984229,1774709457366,-151.0,0.00035997,14]
[418984230,1774709457376,-151.0,0.00035997,14]
[418984231,1774709457386,-486563.17,0.00036,7]
[418984232,1774709457395,-169144.03159229,0.00036,10]
[418984233,1774709457406,-927.58558876,0.00036,2]
[418984234,1774709457415,-519.0,0.00036,21]
[418984235,1774709457425,-25000.0,0.00036001,10]
[418984236,1774709457434,-5000.0,0.00036062,10]
[418984237,1774709457444,-5000.0,0.00036096,10]
[418984238,1774709457453,-5000.0,0.00036109,10]
[418984239,1774709457463,-387.46478059,0.00036112,2]
[418984240,1774709457473,-5000.0,0.00036157,10]
[418984241,1774709457482,-5000.0,0.00036194,10]
[418984242,1774709457492,-16717.74,0.000362,2]
[418984243,1774709457502,-2506.91,0.00036213,10]
[418984244,1774709457512,-3132.5268585,0.00036223,2]
[418984245,1774709457524,-25000.0,0.00036223,10]
[418984246,1774709457535,-5000.0,0.00036268,10]
[418984247,1774709457544,-5000.0,0.00036275,10]
[418984248,1774709457555,-2506.91,0.00036278,10]
[418984249,1774709457564,-2534.06,0.0003629,10]
[418984250,1774709457574,-5000.0,0.00036309,10]
[418984251,1774709457584,-5000.0,0.00036312,10]
[418984252,1774709457595,-5000.0,0.00036313,10]
[418984253,1774709457606,-152.0,0.00036373,15]
[418984254,1774709457616,-25000.0,0.00036393,10]
[418984255,1774709457625,-7782.7420608,0.000364,3]
[418984256,1774709457636,-2957.83,0.000364,30]
[418984257,1774709457646,-284.5,0.00036402,10]
[418984258,1774709457655,-5000.0,0.00036407,10]
[418984259,1774709457665,-18143.91,0.00036412,10]
[418984260,1774709457674,-2508.02,0.00036415,10]
[418984261,1774709457684,-150.0,0.0003643,2]
[418984262,1774709457694,-5000.0,0.00036433,10]
[418984263,1774709457704,-5000.0,0.00036434,10]
[418984264,1774709457716,-177.0,0.00036442,30]
[418984265,1774709457727,-5000.0,0.0003645,10]
[418984266,1774709457738,-3604.56,0.00036462,10]
[418984267,1774709457748,-5000.0,0.00036482,10]
[418984268,1774709457757,-229.0,0.00036484,30]
[418984269,1774709457766,-155.0,0.00036484,30]
[418984270,1774709457776,-272.0,0.00036484,30]
[418984271,1774709457786,-397.0,0.00036484,30]
[418984272,1774709457795,-5000.0,0.00036496,10]
[418984273,1774709457804,-2508.03,0.00036529,10]
[418984274,1774709457814,-1576.42,0.0003653,10]
[418984275,1774709457823,-2503.92,0.00036567,10]
[418984276,1774709457833,-5000.0,0.00036597,10]
[418984277,1774709457844,-2503.92,0.00036647,10]
[418984278,1774709457854,-5000.0,0.00036728,10]
[418984279,1774709457865,-25000.0,0.00036778,10]
[418984280,1774709457875,-1626.05954453,0.000368,2]
[418984281,1774709457884,-450.0,0.0003682,2]
[418984282,1774709457894,-450.0,0.0003682,2]
[418984283,1774709457904,-407.0,0.0003682,2]
[418984284,1774709457914,-5000.0,0.00036859,10]
[418984285,1774709457925,-508.44269288,0.000369,12]
[418984286,1774709457934,-14259.38860488,0.0003691,2]
[418984287,1774709457944,-500.0,0.0003691,2]
[418984288,1774709457954,-5000.0,0.00036915,10]
[418984289,1774709457964,-1000.0,0.00036968,2]
[418984290,1774709457973,-1000.0,0.00036968,2]
[418984291,1774709457984,-1000.0,0.00036968,2]
[418984292,1774709457994,-1000.0,0.00036968,2]
[418984293,1774709458003,-1000.0,0.00036968,2]
[418984294,1774709458013,-1000.0,0.0003697,2]
[418984295,1774709458022,-1000.0,0.0003697,2]
[418984296,1774709458032,-1000.0,0.0003697,2]
[418984297,1774709458041,-1000.0,0.0003697,2]
[418984298,1774709458051,-1000.0,0.0003697,2]
[418984299,1774709458061,-25000.0,0.00036992,10]
[418984300,1774709458070,-2534.05,0.00036998,10]
[418984301,1774709458080,-101057.0,0.00037,20]
[418984302,1774709458090,-365.0,0.00037,2]
[418984303,1774709458099,-365.94135984,0.00037,3]
[418984304,1774709458109,-167.25351385,0.00037,2]
[418984305,1774709458119,-1000.33926587,0.00037,2]
[418984306,1774709458129,-4500.0,0.00037,2]
[418984307,1774709458139,-1272.63,0.00037044,2]
[418984308,1774709458149,-2648.1,0.00037136,47]
[418984309,1774709458158,-150.507,0.00037136,47]
[418984310,1774709458168,-27159.127,0.000372,2]
[418984311,1774709458177,-152.0,0.00037219,16]
[418984312,1774709458187,-600.0,0.0003726,120]
[418984313,1774709458196,-600.0,0.0003726,120]
[418984314,1774709458206,-491.0,0.0003726,120]
[418984315,1774709458215,-1640.97,0.00037273,2]
[418984316,1774709458225,-200.0,0.0003735,30]
[418984317,1774709458235,-256.0,0.0003735,30]
[418984318,1774709458245,-250.0,0.00037376,2]
[418984319,1774709458255,-177.0,0.00037442,30]
[418984320,1774709458265,-229.0,0.00037484,30]
[418984321,1774709458275,-155.0,0.00037484,30]
[418984322,1774709458284,-272.0,0.00037484,30]
[418984323,1774709458294,-397.0,0.00037484,30]
[418984324,1774709458304,-800.0,0.00037497,2]
[418984325,1774709458314,-800.0,0.00037497,2]
[418984326,1774709458323,-693.0,0.00037497,2]
[418984327,1774709458333,-4373.99600866,0.0003759,2]
[418984328,1774709458343,-500.0,0.00037616,2]
[418984329,1774709458352,-753.95,0.0003766,2]
[418984330,1774709458362,-551.08,0.0003766,2]
[418984331,1774709458372,-1644.5,0.0003766,2]
[418984332,1774709458381,-150.0,0.00037686,30]
[418984333,1774709458391,-2000.0,0.000377,2]
[418984334,1774709458400,-250.0,0.0003778,30]
[418984335,1774709458410,-250.0,0.0003778,30]
[418984336,1774709458420,-168.0,0.0003778,30]
[418984337,1774709458430,-1570.0,0.00037856,11]
[418984338,1774709458440,-204.09837032,0.0003788,2]
[418984339,1774709458450,-500.0,0.00037881,2]
[418984340,1774709458461,-500.0,0.00037966,2]
[418984341,1774709458470,-621.0,0.00037977,2]
[418984342,1774709458481,-1045.0,0.00037977,2]
[418984343,1774709458490,-1262.0,0.00037977,2]
[418984344,1774709458501,-2500.0,0.00038,2]
[418984345,1774709458510,-526.0,0.00038,5]
[418984346,1774709458520,-8538.42818054,0.00038,7]
[418984347,1774709458612,-152.0,0.00038065,17]
[418984348,1774709458622,-800.0,0.00038146,2]
[418984349,1774709458632,-800.0,0.00038146,2]
[418984350,1774709458642,-715.0,0.00038146,2]
[418984351,1774709458652,-150.0,0.00038252,2]
[418984352,1774709458663,-500.0,0.0003827,2]
[418984353,1774709458672,-500.0,0.0003827,2]
[418984354,1774709458682,-374.0,0.0003827,2]
[418984355,1774709458692,-150.0,0.00038356,5]
[418984356,1774709458702,-500.0,0.00038356,5]
[418984357,1774709458713,-280.0,0.0003838,5]
[418984358,1774709458724,-177.0,0.00038442,30]
[418984359,1774709458734,-229.0,0.00038484,30]
[418984360,1774709458744,-155.0,0.00038484,30]
[418984361,1774709458754,-272.0,0.00038484,30]
[418984362,1774709458765,-397.0,0.00038484,30]
[418984363,1774709458774,-35706.6147,0.000385,2]
[418984364,1774709458785,-500.0,0.00038521,2]
[418984365,1774709458795,-500.0,0.000387,120]
[418984366,1774709458805,-500.0,0.000387,120]
[418984367,1774709458814,-500.0,0.000387,120]
[418984368,1774709458824,-500.0,0.000387,120]
[418984369,1774709458835,-1074.36119752,0.000387,2]
[418984370,1774709458844,-731.33,0.00038789,2]
[418984371,1774709458854,-534.54,0.00038789,2]
[418984372,1774709458864,-1595.17,0.00038789,2]
[418984373,1774709458874,-250.0,0.00038818,2]
[418984374,1774709458884,-23108.90239113,0.00038834,2]
[418984375,1774709458893,-343.57847973,0.00038862,7]
[418984376,1774709458903,-6403.95195314,0.00038862,7]
[418984377,1774709458913,-153.03675566,0.00038865,60]
[418984378,1774709458923,-250.0,0.00038904,5]
[418984379,1774709458933,-152.0,0.00038911,18]
[418984380,1774709458943,-31058.44479984,0.00039,2]
[418984381,1774709458953,-1000.74384406,0.00039,12]
[418984382,1774709458963,-36848.19714058,0.00039,10]
[418984383,1774709458973,-388.0,0.00039,2]
[418984384,1774709458983,-500.0,0.00039096,2]
[418984385,1774709458993,-500.0,0.00039096,2]
[418984386,1774709459003,-381.0,0.00039096,2]
[418984387,1774709459012,-500.0,0.00039168,2]
[418984388,1774709459022,-250.0,0.00039193,58]
[418984389,1774709459032,-1272.63,0.00039207,2]
[418984390,1774709459042,-1228.9445,0.00039393,30]
[418984391,1774709459060,-500.0,0.00039423,2]
[418984392,1774709459073,-177.0,0.00039442,30]
[418984393,1774709459084,-350.0,0.00039452,5]
[418984394,1774709459094,-1000.0,0.00039452,5]
[418984395,1774709459104,-627.11730697,0.00039461,2]
[418984396,1774709459114,-229.0,0.00039484,30]
[418984397,1774709459124,-155.0,0.00039484,30]
[418984398,1774709459136,-272.0,0.00039484,30]
[418984399,1774709459146,-397.0,0.00039484,30]
[418984400,1774709459157,-500.0,0.00039616,2]
[418984401,1774709459167,-150.0,0.0003963,30]
[418984402,1774709459178,-150.0,0.00039751,2]
[418984403,1774709459188,-152.0,0.00039757,19]
[418984404,1774709459198,-353.86531261,0.00039784,2]
[418984405,1774709459208,-32381.59089774,0.000398,2]
[418984406,1774709459636,-393.472175,0.00024804,2]
[418984407,1774709459646,-107.293825,0.00027397,2]
[418984408,1774709459664,-442.2650553,0.00027397,2]
[418984409,1774709459677,-706.3787027,0.00027397,2]
[418984410,1774709459687,-461.3457262,0.00030176,7]
[418984411,1774709459703,-335.90610531,0.00030176,7]
[418984412,1774709460157,-2468.0,0.00016977,2]
[418984413,1774709460166,-2468.0,0.00019977,2]
[418984414,1774709460177,-2468.0,0.00022977,2]
[418984415,1774709460187,-151.0,0.00024804,2]
[418984416,1774709460197,-393.472175,0.00024804,2]
[418984417,1774709460207,-151.0,0.00024804,2]
[418984418,1774709460217,-202.881,0.00025977,2]
[418984419,1774709460226,-778.905462,0.00027397,2]
[418984420,1774709460236,-1255.937583,0.00027397,2]
[418984421,1774709460246,-44282.79,0.00027397,10]
[418984422,1774709460256,-778.905462,0.00027397,2]